fUST/lending_fUST_20251214
["ID","MTS","AMOUNT","RATE_DAILY","PERIOD"]
[398479685,1765720845533,10000.01,0.00016,2]
[398479686,1765720845557,550.57096316,0.00016,2]
[398479688,1765720884235,999.0,0.00015561,2]
[398479692,1765721002306,289.62930826,0.00014199,2]
[398479700,1765721169957,8160.80972858,0.00014331,2]
[398479701,1765721170240,8144.98903842,0.00014331,2]
[398479710,1765721213035,150.0,9.978e-05,2]
[398479711,1765721213600,150.0,0.00010885,2]
[398479712,1765721213855,220.3,0.00011793,2]
[398479713,1765721214313,293.73,0.000127,2]
[398479714,1765721214944,367.17,0.00013607,2]
[398479715,1765721215194,440.6,0.00014514,2]
[398479716,1765721215658,233.22096158,0.00015421,2]
[398479717,1765721215690,280.80903842,0.00015421,2]
[398479718,1765721222497,162.26,0.000134,2]
[398479719,1765721222912,162.26,0.000136,2]
[398479720,1765721223224,162.26,0.000137,2]
[398479721,1765721223574,162.26,0.000139,2]
[398479722,1765721223939,162.26,0.00014,2]
[398479733,1765721284649,265.5,9.99e-05,2]
[398479734,1765721284978,265.5,9.99e-05,2]
[398479735,1765721285296,265.49,9.99e-05,2]
[398479737,1765721290106,150.0,9.945e-05,2]
[398479738,1765721290600,150.0,0.00010849,2]
[398479739,1765721290968,150.0,0.00011753,2]
[398479740,1765721291490,185.0,0.00012657,2]
[398479741,1765721291809,231.25,0.00013561,2]
[398479752,1765721311897,277.5,0.00014465,2]
[398479753,1765721312316,323.75,0.00015369,2]
[398479831,1765721384190,150.0,9.954e-05,2]
[398479837,1765721384686,150.0,0.00010859,2]
[398479838,1765721385070,150.0,0.00011764,2]
[398479839,1765721385489,150.0,0.00012669,2]
[398479841,1765721385900,150.0,0.00013574,2]
[398479842,1765721386413,165.44,0.00014479,2]
[398479843,1765721386749,193.01,0.00015384,2]
[398479913,1765721432205,-172.25633818,0.00016115,2]
[398479914,1765721432214,-212.54771531,0.00016149,2]
[398479915,1765721432223,-1035.39594651,0.00016183,2]
[398479926,1765721438010,-2602.91954369,0.00016183,2]
[398479927,1765721438019,-170.39641245,0.00016201,2]
[398479928,1765721438028,-313.16366334,0.00016201,2]
[398479929,1765721438038,-500.0,0.0001628,2]
[398479930,1765721438047,-500.0,0.0001628,2]
[398479931,1765721438056,-500.0,0.0001628,5]
[398479932,1765721438065,-361.0,0.00016285,2]
[398479933,1765721438074,-1200.0,0.00016288,2]
[398479934,1765721438084,-220.58,0.00016289,2]
[398479935,1765721438093,-291.0,0.00016292,2]
[398479936,1765721438102,-300.0,0.00016292,2]
[398479937,1765721438111,-1741.32452879,0.00016294,2]
[398479938,1765721438120,-151.46,0.00016295,2]
[398479939,1765721438129,-500.0,0.00016302,2]
[398479940,1765721438138,-500.0,0.00016302,2]
[398479941,1765721438147,-224.754,0.00016302,2]
[398479942,1765721438155,-800.744,0.000165,30]
[398479943,1765721438164,-151.46,0.00016569,2]
[398479944,1765721438173,-811.817918,0.00016596,2]
[398479945,1765721438182,-314.5475803,0.000166,2]
[398479946,1765721438191,-300.0,0.00016628,2]
[398479948,1765721438200,-300.0,0.00016628,2]
[398479949,1765721438209,-300.0,0.00016628,2]
[398479950,1765721438218,-300.0,0.00016628,2]
[398479952,1765721438228,-300.0,0.00016628,2]
[398479954,1765721438238,-300.0,0.00016628,2]
[398479956,1765721438247,-300.0,0.00016628,2]
[398479958,1765721438257,-300.0,0.00016628,2]
[398479960,1765721438266,-300.0,0.00016628,2]
[398479962,1765721438275,-300.0,0.00016628,2]
[398479964,1765721438283,-300.0,0.00016628,2]
[398479966,1765721438292,-300.0,0.00016628,2]
[398479968,1765721438302,-300.0,0.00016628,2]
[398479970,1765721438311,-300.0,0.00016628,2]
[398479972,1765721438320,-300.0,0.00016628,2]
[398479974,1765721438329,-397.1500583,0.000167,2]
[398479976,1765721438339,-151.46588639,0.00016843,2]
[398479978,1765721438347,-1601.65583274,0.0001688,2]
[398479980,1765721438357,-1858.49,0.00016882,2]
[398479982,1765721438366,-227.21033457,0.00016936,2]
[398479984,1765721438375,-324.50334747,0.00016963,2]
[398479986,1765721438385,-151.0,0.00016969,2]
[398479988,1765721438393,-500.0,0.00016969,2]
[398479990,1765721438402,-574.12855637,0.00016972,2]
[398479992,1765721438411,-1000.0,0.00016972,2]
[398479994,1765721438420,-1000.0,0.00016972,2]
[398479996,1765721438429,-1000.0,0.00016972,2]
[398479998,1765721438438,-1000.0,0.00016972,2]
[398479999,1765721438447,-1000.0,0.00016972,2]
[398480001,1765721438458,-899.5341,0.00016972,2]
[398480003,1765721438467,-163.1,0.00016972,3]
[398480005,1765721438476,-175.0,0.0001698,2]
[398480007,1765721438485,-224.31946823,0.00016981,2]
[398480009,1765721438495,-500.0,0.00016981,2]
[398480011,1765721438505,-319.44347358,0.00016981,2]
[398480013,1765721438514,-450.0,0.00016981,2]
[398480015,1765721438523,-180.95042679,0.00016981,2]
[398480017,1765721438532,-500.0,0.00016982,2]
[398480019,1765721438542,-3655.76305905,0.00016982,2]
[398480022,1765721438553,-835.1938949,0.00016982,2]
[398480024,1765721438564,-380.28561644,0.00016982,2]
[398480026,1765721438575,-284.22437778,0.00016982,2]
[398480412,1765721443048,-489.3,0.00016972,3]
[398480413,1765721443058,-541.10296552,0.00016981,2]
[398480414,1765721443069,-458.89703448,0.00016981,2]
[398480415,1765721443078,-433.82614552,0.00016981,2]
[398480416,1765721443097,-300.0,0.00016981,2]
[398480424,1765721446058,-266.17385448,0.00016981,2]
[398480425,1765721446067,-950.062,0.00016981,2]
[398480426,1765721446076,-4855.7641455,0.00016982,2]
[398480448,1765721454081,150.0,0.0001125,2]
[398480449,1765721454514,150.0,0.00012273,2]
[398480450,1765721454947,150.0,0.00013296,2]
[398480452,1765721455393,150.0,0.00014318,2]
[398480453,1765721455953,150.0,0.00015341,2]
[398480473,1765721462755,153.0,0.000134,2]
[398480475,1765721463079,153.0,0.000134,2]
[398480476,1765721463366,153.0,0.000134,2]
[398480477,1765721463689,153.0,0.000135,2]
[398480478,1765721463985,153.0,0.000135,2]
[398480479,1765721464388,153.0,0.000135,2]
[398480480,1765721464731,153.0,0.000135,2]
[398480482,1765721465111,153.0,0.000135,2]
[398480483,1765721466372,153.0,0.000135,2]
[398480484,1765721466771,153.0,0.000136,2]
[398480486,1765721466886,153.0,0.000136,2]
[398480487,1765721467155,153.0,0.000136,2]
[398480488,1765721467566,153.0,0.000136,2]
[398480489,1765721467863,153.0,0.000136,2]
[398480491,1765721468218,153.0,0.000136,2]
[398480492,1765721468492,153.0,0.000136,2]
[398480493,1765721468852,153.0,0.000137,2]
[398480494,1765721469287,153.0,0.000137,2]
[398480496,1765721469586,153.0,0.000137,2]
[398480497,1765721469952,153.0,0.000137,2]
[398480498,1765721470225,153.0,0.000137,2]
[398480499,1765721470582,153.0,0.000137,2]
[398480500,1765721470903,153.0,0.000137,2]
[398480501,1765721471243,153.0,0.000138,2]
[398480502,1765721471509,153.0,0.000138,2]
[398480503,1765721471817,153.0,0.000138,2]
[398480505,1765721472104,153.0,0.000138,2]
[398480506,1765721472467,153.0,0.000138,2]
[398480507,1765721472747,153.0,0.000138,2]
[398480508,1765721473028,153.0,0.000139,2]
[398480509,1765721473708,153.0,0.000139,2]
[398480510,1765721473909,42.46096158,0.000139,2]
[398480511,1765721473936,110.53903842,0.000139,2]
[398480513,1765721474124,153.0,0.000139,2]
[398480514,1765721474429,153.0,0.000139,2]
[398480515,1765721474725,153.0,0.000139,2]
[398480516,1765721475045,153.0,0.000139,2]
[398480517,1765721475341,153.0,0.00014,2]
[398480518,1765721475645,153.0,0.00014,2]
[398480519,1765721476812,153.0,0.00014,2]
[398480520,1765721477000,153.0,0.00014,2]
[398480553,1765721500406,-450.15916011,0.00016292,2]
[398480554,1765721500438,-500.0,0.00016292,2]
[398480555,1765721500469,-500.0,0.00016292,2]
[398480556,1765721500498,-500.0,0.00016292,2]
[398480557,1765721500526,-500.0,0.00016292,2]
[398480558,1765721500556,-500.0,0.00016292,2]
[398480559,1765721500585,-500.0,0.00016292,2]
[398480560,1765721500614,-500.0,0.00016292,2]
[398480561,1765721500644,-500.0,0.00016292,2]
[398480562,1765721500673,-500.0,0.00016292,2]
[398480563,1765721501308,-500.0,0.00016292,2]
[398480564,1765721501336,-500.0,0.00016292,2]
[398480565,1765721501364,-500.0,0.00016292,2]
[398480566,1765721501394,-500.0,0.00016292,2]
[398480567,1765721501427,-500.0,0.00016292,2]
[398480568,1765721501459,-206.30326652,0.00016292,2]
[398480569,1765721501492,-500.0,0.00016292,2]
[398480570,1765721501522,-500.0,0.00016292,2]
[398480571,1765721501553,-500.0,0.00016292,2]
[398480572,1765721501583,-292.66996647,0.00016292,2]
[398480573,1765721501615,-300.0,0.00016617,2]
[398480574,1765721501646,-102.06353402,0.00016617,2]
[398480575,1765721501850,-197.93646598,0.00016617,2]
[398480576,1765721501880,-300.0,0.00016617,2]
[398480577,1765721501912,-300.0,0.00016617,2]
[398480578,1765721501942,-201.90194138,0.00016936,2]
[398480579,1765721501972,-300.0,0.00016981,2]
[398480580,1765721502269,-300.0,0.00016617,2]
[398480581,1765721502759,-300.0,0.00016617,2]
[398480583,1765721503053,-300.0,0.00016617,2]
[398480584,1765721503324,-300.0,0.00016982,2]
[398480585,1765721503342,-9400.01,0.00016982,2]
[398480586,1765721503525,-300.0,0.00016617,2]
[398480587,1765721503535,-9700.01,0.00016982,2]
[398480588,1765721503560,-300.0,0.00016982,2]
[398480589,1765721503576,-9400.01,0.00016982,2]
[398480590,1765721503592,-10000.01,0.00016982,2]
[398480591,1765721503621,-300.0,0.00016617,2]
[398480592,1765721503638,-9400.01,0.00016982,2]
[398480593,1765721503692,-300.0,0.00016617,2]
[398480594,1765721503701,-9700.01,0.00016982,2]
[398480596,1765721509326,-500.0,0.00016292,2]
[398480597,1765721509358,-300.0,0.00016617,2]
[398480598,1765721509389,-300.0,0.00016617,2]
[398480600,1765721509420,-300.0,0.00016617,2]
[398480601,1765721509450,-300.0,0.00016617,2]
[398480602,1765721509481,-300.0,0.00016617,2]
[398480603,1765721509510,-214.046,0.00016981,2]
[398480604,1765721509537,-183.58663126,0.00016981,2]
[398480605,1765721509772,-500.0,0.00016292,2]
[398480606,1765721509803,-4704.74473748,0.00016982,2]
[398480607,1765721509870,-500.0,0.00016982,2]
[398480608,1765721509903,-9000.01,0.00016982,2]
[398480611,1765721512321,-326.2,0.00016972,3]
[398480612,1765721512358,-9347.61,0.00016982,2]
[398480613,1765721515378,-500.0,0.00016292,2]
[398480614,1765721515430,-9000.01,0.00016982,2]
[398480615,1765721515583,-10000.01,0.00016982,2]
[398480617,1765721515830,-10000.01,0.00016982,2]
[398480618,1765721516059,-10000.01,0.00016982,2]
[398480619,1765721516280,-10000.01,0.00016982,2]
[398480620,1765721516546,-10000.01,0.00016982,2]
[398480634,1765721523146,186.03,0.00012,2]
[398480635,1765721523514,186.03,0.000127,2]
[398480636,1765721523881,186.03,0.000133,2]
[398480638,1765721524208,186.03,0.00014,2]
[398480641,1765721525386,500.0,0.00016292,2]
[398480652,1765721562833,157.27439947,0.00016015,2]
[398480656,1765721607434,-8598.61560053,0.00016882,2]
[398480657,1765721608090,-10000.01,0.00016882,2]
[398480658,1765721608675,-10000.01,0.00016882,2]
[398480659,1765721608974,-10000.01,0.00016882,2]
[398480661,1765721609733,-10000.01,0.00016882,2]
[398480662,1765721609908,-10000.01,0.00016882,2]
[398480664,1765721641769,400.1,0.00013418,2]
[398480666,1765721642836,163.5,0.000134,2]
[398480667,1765721643178,163.5,0.000135,2]
[398480668,1765721644024,163.5,0.000135,2]
[398480669,1765721644114,163.5,0.000136,2]
[398480670,1765721644232,163.5,0.000137,2]
[398480671,1765721644512,163.5,0.000137,2]
[398480672,1765721644830,163.5,0.000138,2]
[398480673,1765721645504,163.5,0.000139,2]
[398480674,1765721645823,163.5,0.000139,2]
[398480675,1765721646137,163.5,0.00014,2]
[398480676,1765721647631,152.47,9.494e-05,2]
[398480677,1765721648083,304.93,0.00010358,2]
[398480678,1765721648470,457.4,0.00011221,2]
[398480679,1765721649169,609.87,0.00012084,2]
[398480680,1765721649588,762.33,0.00012947,2]
[398480681,1765721650126,914.8,0.0001381,2]
[398480682,1765721650446,1067.27,0.00014673,2]
[398480683,1765721650936,1219.73,0.00015536,2]
[398480715,1765721725015,150.0,9.488e-05,2]
[398480716,1765721725437,192.28,0.00010351,2]
[398480717,1765721725881,288.43,0.00011214,2]
[398480718,1765721726324,384.57,0.00012076,2]
[398480719,1765721726783,480.71,0.00012939,2]
[398480720,1765721727709,576.85,0.00013801,2]
[398480721,1765721728005,672.99,0.00014664,2]
[398480722,1765721728134,769.13,0.00015527,2]
[398480723,1765721731850,6485.05,0.00015,2]
[398480724,1765721731874,6662.95,0.00015,2]
[398480725,1765721763910,3337.06,0.00016,2]
[398480726,1765721763938,6662.94,0.00016,2]
[398480730,1765721803056,280.17,9.487e-05,2]
[398480731,1765721803861,560.33,0.00010349,2]
[398480732,1765721804275,840.5,0.00011212,2]
[398480733,1765721804679,1120.66,0.00012074,2]
[398480734,1765721805132,535.41,0.00012937,2]
[398480735,1765721805161,865.42,0.00012937,2]
[398480736,1765721805595,1681.0,0.00013799,2]
[398480737,1765721806003,1961.16,0.00014662,2]
[398480738,1765721806413,2241.33,0.00015524,2]
[398480740,1765721823026,155.74,0.000134,2]
[398480741,1765721823306,155.74,0.000135,2]
[398480742,1765721823605,155.74,0.000136,2]
[398480743,1765721823935,155.74,0.000137,2]
[398480744,1765721824362,155.74,0.000138,2]
[398480745,1765721824778,155.74,0.000138,2]
[398480746,1765721825089,155.74,0.000139,2]
[398480747,1765721826062,155.74,0.00014,2]
[398480754,1765721881325,201.368803,0.00013699,2]
[398480755,1765721884329,216.32,9.439e-05,2]
[398480756,1765721884771,432.65,0.00010297,2]
[398480757,1765721885226,648.97,0.00011155,2]
[398480758,1765721885641,505.871197,0.00012013,2]
[398480759,1765721885670,359.428803,0.00012013,2]
[398480760,1765721886067,1081.62,0.00012871,2]
[398480761,1765721886463,1297.95,0.00013729,2]
[398480762,1765721886905,1514.27,0.00014588,2]
[398480763,1765721887418,1730.6,0.00015446,2]
[398480764,1765721900312,160.0,5.2e-07,2]
[398480765,1765721901341,160.0,5.2e-07,2]
[398480766,1765721902792,160.0,5.2e-07,2]
[398480771,1765721903931,160.0,5.2e-07,2]
[398480773,1765721905492,160.0,5.2e-07,2]
[398480774,1765721906012,160.0,5.2e-07,2]
[398480775,1765721907186,160.0,5.2e-07,2]
[398480776,1765721908441,160.0,5.2e-07,2]
[398480779,1765721909551,160.0,5.2e-07,2]
[398480780,1765721910532,160.0,5.2e-07,2]
[398480800,1765721942642,153.32,0.000134,2]
[398480801,1765721942916,153.32,0.000135,2]
[398480802,1765721943210,153.32,0.000135,2]
[398480803,1765721943488,153.32,0.000136,2]
[398480804,1765721944037,1802.861197,0.000154,2]
[398480805,1765721944061,10000.01,0.000154,2]
[398480806,1765721944083,3595.2199905,0.000154,2]
[398480807,1765721944443,153.32,0.000136,2]
[398480808,1765721944734,153.32,0.000137,2]
[398480809,1765721945246,153.32,0.000137,2]
[398480810,1765721945497,153.32,0.000138,2]
[398480811,1765721945808,153.32,0.000138,2]
[398480813,1765721946189,153.32,0.000139,2]
[398480814,1765721946487,153.32,0.000139,2]
[398480815,1765721946814,153.32,0.00014,2]
[398480818,1765721948227,153.32,0.00014,2]
[398480821,1765721963360,231.79,9.388e-05,2]
[398480822,1765721963780,463.58,0.00010241,2]
[398480823,1765721964206,695.38,0.00011095,2]
[398480824,1765721964633,927.17,0.00011948,2]
[398480825,1765721965041,1158.96,0.00012802,2]
[398480826,1765721965468,1390.75,0.00013655,2]
[398480828,1765721965888,1622.54,0.00014509,2]
[398480829,1765721966325,1854.33,0.00015362,2]
[398480836,1765722048845,150.0,9.398e-05,2]
[398480837,1765722049458,251.18,0.00010253,2]
[398480838,1765722049881,376.77,0.00011107,2]
[398480839,1765722050300,502.36,0.00011962,2]
[398480840,1765722050782,375.2,0.00012816,2]
[398480841,1765722051175,252.75,0.00012816,2]
[398480842,1765722051717,753.53,0.0001367,2]
[398480843,1765722051848,879.12,0.00014525,2]
[398480844,1765722052062,1004.71,0.00015379,2]
[398480845,1765722062613,166.7853432,0.00016,2]
[398480854,1765722100773,-656.0,0.00016215,2]
[398480855,1765722127617,150.0,9.435e-05,2]
[398480856,1765722128025,176.92,0.00010293,2]
[398480857,1765722128441,265.38,0.00011151,2]
[398480858,1765722128856,353.84,0.00012008,2]
[398480859,1765722129507,442.3,0.00012866,2]
[398480860,1765722129740,530.76,0.00013724,2]
[398480861,1765722130141,619.22,0.00014582,2]
[398480862,1765722130557,707.69,0.00015439,2]
[398480881,1765722189353,200.0477768,0.00015706,2]
[398480887,1765722202430,150.0,9.957e-05,2]
[398480889,1765722204492,197.92,0.00010862,2]
[398480890,1765722204915,296.88,0.00011767,2]
[398480891,1765722205425,395.84,0.00012672,2]
[398480893,1765722205876,494.79,0.00013577,2]
[398480894,1765722206293,593.75,0.00014482,2]
[398480895,1765722206701,692.71,0.00015388,2]
[398480916,1765722279286,150.0,9.954e-05,2]
[398480917,1765722279688,195.95,0.00010859,2]
[398480920,1765722280360,293.93,0.00011764,2]
[398480921,1765722280545,391.91,0.00012668,2]
[398480922,1765722280980,489.89,0.00013573,2]
[398480924,1765722281751,587.86,0.00014478,2]
[398480925,1765722281910,310.4222232,0.00015383,2]
[398480926,1765722281937,375.4177768,0.00015383,2]
[398480942,1765722318832,151.0,0.00016215,2]
[398480945,1765722320043,179.36038715,0.00016215,2]
[398480953,1765722335273,-217.89688095,0.00016256,2]
[398480957,1765722350090,-783.82,0.00016288,2]
[398480958,1765722355891,150.0,9.96e-05,2]
[398480959,1765722356290,210.83,0.00010865,2]
[398480960,1765722356912,316.25,0.00011771,2]
[398480961,1765722357241,421.67,0.00012676,2]
[398480962,1765722357643,527.08,0.00013582,2]
[398480963,1765722358068,632.5,0.00014487,2]
[398480964,1765722358486,737.92,0.00015393,2]
[398480967,1765722361286,212.8479867,0.0001434,2]
[398480969,1765722363403,5223.2720133,0.00014,2]
[398480970,1765722363428,10000.01,0.00014,2]
[398480971,1765722363452,10000.01,0.00014,2]
[398480972,1765722363477,10000.01,0.00014,2]
[398480973,1765722363501,4550.94154801,0.00014,2]
[398480986,1765722397085,-164.66782336,0.00016292,2]
[398480987,1765722397118,-219.54991829,0.00016292,2]
[398480996,1765722412308,-213.53894333,0.00016295,2]
[398480998,1765722427718,-500.0,0.00016298,2]
[398480999,1765722427754,-500.0,0.00016298,2]
[398481000,1765722427795,-843.33,0.00016298,2]
[398481006,1765722432103,150.0,9.987e-05,2]
[398481007,1765722432498,207.83,0.00010895,2]
[398481008,1765722432912,311.75,0.00011803,2]
[398481009,1765722433313,415.67,0.00012711,2]
[398481011,1765722433748,519.58,0.00013619,2]
[398481012,1765722434349,623.5,0.00014527,2]
[398481013,1765722434760,727.41,0.00015435,2]
[398481017,1765722438928,247.3595294,9.277e-05,2]
[398481019,1765722442987,-831.33,0.00016343,2]
[398481031,1765722475935,-500.0,0.00016627,2]
[398481032,1765722475970,-500.0,0.00016627,2]
[398481035,1765722482302,153.06,0.000134,2]
[398481036,1765722482600,153.06,0.000137,2]
[398481037,1765722482846,-500.0,0.00016707,2]
[398481038,1765722482879,-150.0,0.00016707,2]
[398481039,1765722483653,153.06,0.00014,2]
[398481052,1765722498194,-1892.33794293,0.00016775,2]
[398481057,1765722502477,247.85424845,0.00014346,2]
[398481067,1765722508150,150.0,9.969e-05,2]
[398481070,1765722508568,208.34,0.00010875,2]
[398481071,1765722508989,312.51,0.00011781,2]
[398481072,1765722509416,416.68,0.00012688,2]
[398481075,1765722510071,520.84,0.00013594,2]
[398481077,1765722510293,625.01,0.000145,2]
[398481078,1765722510706,729.18,0.00015406,2]
[398481079,1765722511138,833.35,0.00016313,2]
[398481083,1765722513794,-597.0,0.00016776,2]
[398481098,1765722529424,-201.90194139,0.00016838,2]
[398481101,1765722537205,201.90194139,0.00016838,2]
[398481107,1765722545077,-500.0,0.00016844,2]
[398481108,1765722545109,-150.0,0.00016844,2]
[398481117,1765722560288,-227.81397263,0.00016856,2]
[398481124,1765722586055,150.0,0.00010028,2]
[398481125,1765722586195,280.01,0.0001094,2]
[398481126,1765722586398,420.02,0.00011851,2]
[398481127,1765722586734,560.03,0.00012763,2]
[398481128,1765722587139,700.03,0.00013674,2]
[398481129,1765722587540,840.04,0.00014586,2]
[398481130,1765722587939,980.05,0.00015498,2]
[398481131,1765722588392,1120.05,0.00016409,2]
[398481134,1765722602532,153.95,0.000134,2]
[398481135,1765722602899,153.95,0.000136,2]
[398481136,1765722603204,153.95,0.000137,2]
[398481137,1765722603491,153.95,0.000139,2]
[398481138,1765722603802,153.95,0.00014,2]
[398481139,1765722619306,4180.03,0.00016782,2]
[398481140,1765722619336,10000.01,0.00016782,2]
[398481141,1765722619365,10000.01,0.00016782,2]
[398481142,1765722619394,10000.01,0.00016782,2]
[398481143,1765722619421,10000.01,0.00016782,2]
[398481144,1765722619450,10000.01,0.00016782,2]
[398481145,1765722619479,10000.01,0.00016782,2]
[398481146,1765722624800,196.66632771,9.277e-05,2]
[398481147,1765722630303,200.23939675,9.277e-05,2]
[398481204,1765722632435,-200.23939675,0.00014413,2]
[398481205,1765722632445,-246.88063407,0.00016781,2]
[398481206,1765722632456,-253.11936593,0.00016781,2]
[398481207,1765722632466,-202.53715132,0.00016781,2]
[398481208,1765722632477,-515.27573026,0.00016781,2]
[398481209,1765722632486,-54285.58136513,0.00016782,2]
[398481210,1765722632498,-2730.9520842,0.00016782,2]
[398481211,1765722632509,-1605.72136513,0.00016782,2]
[398481223,1765722635284,249.74406912,0.00014356,2]
[398481225,1765722638387,-2521.307953,0.00016782,2]
[398481226,1765722638411,-5000.0,0.00016782,2]
[398481268,1765722640764,-207.49186753,0.00016781,2]
[398481270,1765722640774,-199.18555183,0.00016781,2]
[398481272,1765722640783,-33.77258064,0.00016781,2]
[398481342,1765722646196,-466.22741936,0.00016781,2]
[398481344,1765722646205,-500.0,0.00016781,2]
[398481346,1765722646215,-500.0,0.00016781,2]
[398481347,1765722646224,-500.0,0.00016781,2]
[398481349,1765722646233,-500.0,0.00016781,2]
[398481351,1765722646242,-500.0,0.00016781,2]
[398481353,1765722646251,-500.0,0.00016781,2]
[398481355,1765722646260,-500.0,0.00016781,2]
[398481357,1765722646269,-500.0,0.00016781,2]
[398481359,1765722646278,-500.0,0.00016781,2]
[398481361,1765722646287,-500.0,0.00016781,2]
[398481363,1765722646296,-500.0,0.00016781,2]
[398481365,1765722646306,-296.55031669,0.00016781,2]
[398481367,1765722646315,-500.0,0.00016781,2]
[398481369,1765722646325,-500.0,0.00016781,2]
[398481370,1765722646334,-500.0,0.00016781,2]
[398481372,1765722646342,-500.0,0.00016781,2]
[398481374,1765722646351,-500.0,0.00016781,2]
[398481376,1765722646360,-500.0,0.00016781,2]
[398481378,1765722646369,-500.0,0.00016781,2]
[398481380,1765722646378,-500.0,0.00016781,2]
[398481382,1765722646387,-47.38431104,0.00016781,2]
[398481384,1765722646398,-452.61568896,0.00016781,2]
[398481386,1765722646407,-500.0,0.00016781,2]
[398481388,1765722646416,-500.0,0.00016781,2]
[398481390,1765722646424,-500.0,0.00016781,2]
[398481392,1765722646433,-500.0,0.00016781,2]
[398481393,1765722646442,-500.0,0.00016781,2]
[398481395,1765722646451,-500.0,0.00016781,2]
[398481397,1765722646461,-428.97376915,0.00016781,2]
[398481400,1765722646470,-500.0,0.00016781,2]
[398481401,1765722646479,-500.0,0.00016781,2]
[398481403,1765722646489,-500.0,0.00016781,2]
[398481405,1765722646498,-500.0,0.00016781,2]
[398481407,1765722646507,-500.0,0.00016781,2]
[398481409,1765722646516,-500.0,0.00016781,2]
[398481411,1765722646525,-500.0,0.00016781,2]
[398481413,1765722646535,-500.0,0.00016781,2]
[398481415,1765722646544,-500.0,0.00016781,2]
[398481416,1765722646553,-500.0,0.00016781,2]
[398481418,1765722646562,-500.0,0.00016781,2]
[398481419,1765722646571,-500.0,0.00016781,2]
[398481420,1765722646581,-500.0,0.00016781,2]
[398481421,1765722646590,-500.0,0.00016781,2]
[398481422,1765722646599,-500.0,0.00016781,2]
[398481423,1765722646608,-500.0,0.00016781,2]
[398481424,1765722646617,-500.0,0.00016781,2]
[398481425,1765722646627,-500.0,0.00016781,2]
[398481426,1765722646636,-500.0,0.00016781,2]
[398481427,1765722646645,-500.0,0.00016781,2]
[398481428,1765722646654,-500.0,0.00016781,2]
[398481429,1765722646664,-500.0,0.00016781,2]
[398481430,1765722646673,-500.0,0.00016781,2]